[Event "*** Titled Tuesday Blitz"]
[Site "Chess.com"]
[Date "2020.04.28"]
[Round "7"]
[White "Twitch_ElhamBlitz05"]
[Black "Izoria123"]
[Result "0-1"]
[WhiteElo "2716"]
[BlackElo "2831"]
[TimeControl "180+1"]
[EndTime "11:17:25 PDT"]
[Termination "Izoria123 won by resignation"]

1. e4 {[%clk 0:03:00.9]} 1... Nc6 {[%clk 0:02:58.8]} 2. Nc3 {[%clk 0:02:52.6]}
2... e5 {[%clk 0:02:57.9]} 3. Bc4 {[%clk 0:02:53]} 3... Nf6 {[%clk 0:02:55.2]}
4. d3 {[%clk 0:02:53.1]} 4... Na5 {[%clk 0:02:52.1]} 5. Qf3 {[%clk 0:02:52.7]}
5... Nxc4 {[%clk 0:02:30.5]} 6. dxc4 {[%clk 0:02:53.6]} 6... Bc5 {[%clk
0:02:21.5]} 7. Nge2 {[%clk 0:02:54.2]} 7... d6 {[%clk 0:02:18.1]} 8. Bg5 {[%clk
0:02:53]} 8... c6 {[%clk 0:02:16.3]} 9. O-O-O {[%clk 0:02:47.2]} 9... h6 {[%clk
0:02:14.6]} 10. Bh4 {[%clk 0:02:44.9]} 10... Be6 {[%clk 0:02:09.1]} 11. b3
{[%clk 0:02:41.6]} 11... Qe7 {[%clk 0:02:04.4]} 12. Ng3 {[%clk 0:02:41]} 12...
g5 {[%clk 0:02:03]} 13. Bxg5 {[%clk 0:02:32.6]} 13... hxg5 {[%clk 0:02:03.9]}
14. h3 {[%clk 0:02:30.3]} 14... O-O-O {[%clk 0:01:53.9]} 15. Nf5 {[%clk
0:02:28.1]} 15... Bxf5 {[%clk 0:01:53.8]} 16. Qxf5+ {[%clk 0:02:26.3]} 16... Qe6
{[%clk 0:01:53.2]} 17. Qxe6+ {[%clk 0:02:07.4]} 17... fxe6 {[%clk 0:01:54.1]}
18. f3 {[%clk 0:02:05.6]} 18... Nh5 {[%clk 0:01:41.2]} 19. Ne2 {[%clk
0:02:03.5]} 19... Nf4 {[%clk 0:01:40.8]} 20. Nxf4 {[%clk 0:01:40.5]} 20... exf4
{[%clk 0:01:39.7]} 21. c3 {[%clk 0:01:31.2]} 21... d5 {[%clk 0:01:35.8]} 22.
cxd5 {[%clk 0:01:29.2]} 22... exd5 {[%clk 0:01:36.7]} 23. exd5 {[%clk
0:01:27.5]} 23... Rxd5 {[%clk 0:01:36.6]} 24. Rxd5 {[%clk 0:01:13.2]} 24... cxd5
{[%clk 0:01:37.5]} 25. Re1 {[%clk 0:01:13.9]} 25... Be3+ {[%clk 0:01:36.7]} 26.
Kc2 {[%clk 0:01:10.7]} 26... Kd7 {[%clk 0:01:37.2]} 27. Kd3 {[%clk 0:01:05.1]}
27... Ke6 {[%clk 0:01:37.8]} 28. a4 {[%clk 0:01:00.9]} 28... Ke5 {[%clk
0:01:37.4]} 29. Re2 {[%clk 0:00:57.5]} 29... Rc8 {[%clk 0:01:36]} 30. a5 {[%clk
0:00:54.6]} 30... Rc5 {[%clk 0:01:34.8]} 31. Ra2 {[%clk 0:00:52.1]} 31... a6
{[%clk 0:01:27.7]} 32. b4 {[%clk 0:00:50.9]} 32... Rc8 {[%clk 0:01:20.6]} 33.
Rb2 {[%clk 0:00:50.9]} 33... Rxc3+ {[%clk 0:01:15.1]} 34. Kxc3 {[%clk
0:00:46.2]} 34... Bd4+ {[%clk 0:01:15.6]} 35. Kc2 {[%clk 0:00:38.7]} 35... Bxb2
{[%clk 0:01:16.5]} 36. Kxb2 {[%clk 0:00:38.2]} 36... Kd4 {[%clk 0:01:16.7]} 37.
Kc2 {[%clk 0:00:21.8]} 37... Ke3 {[%clk 0:01:17.2]} 0-1

[Event "*** Titled Tuesday Blitz"]
[Site "Chess.com"]
[Date "2020.04.28"]
[Round "7"]
[White "PowerThinking2650"]
[Black "GMMarcinDziuba"]
[Result "0-1"]
[WhiteElo "2270"]
[BlackElo "2613"]
[TimeControl "180+1"]
[EndTime "11:17:26 PDT"]
[Termination "GMMarcinDziuba won by resignation"]

1. e4 {[%clk 0:03:00.9]} 1... c5 {[%clk 0:02:58.7]} 2. Nf3 {[%clk 0:03:00.1]}
2... Nc6 {[%clk 0:02:59.4]} 3. d4 {[%clk 0:02:57.7]} 3... cxd4 {[%clk 0:02:59]}
4. Nxd4 {[%clk 0:02:58.6]} 4... e5 {[%clk 0:02:59.6]} 5. Nb5 {[%clk 0:02:58.1]}
5... d6 {[%clk 0:02:59.5]} 6. N1c3 {[%clk 0:02:50.9]} 6... a6 {[%clk 0:02:56.3]}
7. Na3 {[%clk 0:02:50.8]} 7... Be6 {[%clk 0:02:50.7]} 8. Nc4 {[%clk 0:02:49.1]}
8... b5 {[%clk 0:02:45.7]} 9. Ne3 {[%clk 0:02:48.3]} 9... Nf6 {[%clk 0:02:45.2]}
10. g3 {[%clk 0:02:47.8]} 10... Be7 {[%clk 0:02:43.2]} 11. Bg2 {[%clk
0:02:47.6]} 11... O-O {[%clk 0:02:43.2]} 12. O-O {[%clk 0:02:47.4]} 12... Rc8
{[%clk 0:02:43.2]} 13. Ncd5 {[%clk 0:02:42.3]} 13... Bxd5 {[%clk 0:02:33.7]} 14.
exd5 {[%clk 0:02:40.5]} 14... Na5 {[%clk 0:02:28.7]} 15. b3 {[%clk 0:02:33.8]}
15... Qd7 {[%clk 0:02:27.8]} 16. Bd2 {[%clk 0:02:03.8]} 16... Bd8 {[%clk
0:02:27.3]} 17. a4 {[%clk 0:02:01.2]} 17... Nb7 {[%clk 0:02:20.5]} 18. axb5
{[%clk 0:02:00.3]} 18... axb5 {[%clk 0:02:21.4]} 19. b4 {[%clk 0:01:50]} 19...
Bb6 {[%clk 0:02:20.3]} 20. Ra6 {[%clk 0:01:42.1]} 20... Qc7 {[%clk 0:02:11.1]}
21. Nf5 {[%clk 0:01:31.8]} 21... Ra8 {[%clk 0:02:04]} 22. Rxa8 {[%clk
0:01:24.1]} 22... Rxa8 {[%clk 0:02:04.9]} 23. Bg5 {[%clk 0:01:24.1]} 23... Ne8
{[%clk 0:01:57.9]} 24. Qg4 {[%clk 0:01:16.3]} 24... f6 {[%clk 0:01:50.3]} 25.
Be3 {[%clk 0:01:02.7]} 25... Bxe3 {[%clk 0:01:43]} 26. fxe3 {[%clk 0:00:58]}
26... Nd8 {[%clk 0:01:42.6]} 27. Be4 {[%clk 0:00:54.7]} 27... g6 {[%clk
0:01:36.8]} 28. Nh6+ {[%clk 0:00:47.2]} 28... Kg7 {[%clk 0:01:37.2]} 29. Qh3
{[%clk 0:00:41.7]} 29... Nf7 {[%clk 0:01:29.3]} 30. Ng4 {[%clk 0:00:20.2]} 30...
f5 {[%clk 0:01:06]} 31. Bxf5 {[%clk 0:00:19.4]} 31... gxf5 {[%clk 0:01:06]} 32.
Rxf5 {[%clk 0:00:19.5]} 32... Ra1+ {[%clk 0:01:05.2]} 33. Kg2 {[%clk 0:00:16.6]}
33... Qxc2+ {[%clk 0:01:04.1]} 34. Rf2 {[%clk 0:00:16.4]} 34... Qe4+ {[%clk
0:01:02.9]} 35. Rf3 {[%clk 0:00:14.4]} 35... Qxf3+ {[%clk 0:01:00.5]} 36. Kxf3
{[%clk 0:00:13.7]} 36... Ng5+ {[%clk 0:01:00.7]} 0-1

[Event "*** Titled Tuesday Blitz"]
[Site "Chess.com"]
[Date "2020.04.28"]
[Round "7"]
[White "Bagirova"]
[Black "ChrisTool2"]
[Result "0-1"]
[WhiteElo "2219"]
[BlackElo "2371"]
[TimeControl "180+1"]
[EndTime "11:17:26 PDT"]
[Termination "ChrisTool2 won by resignation"]

1. e4 {[%clk 0:03:00.9]} 1... c5 {[%clk 0:02:57.4]} 2. Nf3 {[%clk 0:02:58.9]}
2... e6 {[%clk 0:02:56.8]} 3. d4 {[%clk 0:02:59.2]} 3... cxd4 {[%clk 0:02:57.7]}
4. Nxd4 {[%clk 0:02:59.8]} 4... a6 {[%clk 0:02:58.4]} 5. a4 {[%clk 0:02:56.6]}
5... Qc7 {[%clk 0:02:57.2]} 6. Bd3 {[%clk 0:02:56]} 6... b6 {[%clk 0:02:56.1]}
7. O-O {[%clk 0:02:56]} 7... Bb7 {[%clk 0:02:56.1]} 8. c4 {[%clk 0:02:53.8]}
8... d6 {[%clk 0:02:56.2]} 9. Nc3 {[%clk 0:02:54]} 9... Nf6 {[%clk 0:02:56.4]}
10. Be3 {[%clk 0:02:47.1]} 10... Nbd7 {[%clk 0:02:56.8]} 11. f3 {[%clk
0:02:40.9]} 11... Be7 {[%clk 0:02:57.2]} 12. Rc1 {[%clk 0:02:38.6]} 12... O-O
{[%clk 0:02:57]} 13. b3 {[%clk 0:02:24.2]} 13... Rac8 {[%clk 0:02:57.2]} 14. g4
{[%clk 0:02:22.7]} 14... Ne5 {[%clk 0:02:47.2]} 15. Be2 {[%clk 0:02:19.2]} 15...
Rfe8 {[%clk 0:02:37.4]} 16. g5 {[%clk 0:02:14.1]} 16... Nfd7 {[%clk 0:02:37]}
17. f4 {[%clk 0:02:14]} 17... Ng6 {[%clk 0:02:35.5]} 18. f5 {[%clk 0:02:11.6]}
18... exf5 {[%clk 0:02:11.6]} 19. exf5 {[%clk 0:01:58.8]} 19... Nge5 {[%clk
0:01:59]} 20. h4 {[%clk 0:01:46.2]} 20... Bf8 {[%clk 0:01:54.7]} 21. Bf2 {[%clk
0:01:37.4]} 21... Nc5 {[%clk 0:01:50.6]} 22. f6 {[%clk 0:01:26]} 22... g6 {[%clk
0:01:48.6]} 23. h5 {[%clk 0:01:15.9]} 23... Qd7 {[%clk 0:01:47.8]} 24. hxg6
{[%clk 0:01:12]} 24... hxg6 {[%clk 0:01:31]} 25. Nd5 {[%clk 0:01:10.8]} 25...
Bxd5 {[%clk 0:01:25.9]} 26. cxd5 {[%clk 0:01:10.2]} 26... Ne4 {[%clk 0:01:20.5]}
27. Bxa6 {[%clk 0:00:51.2]} 27... Rxc1 {[%clk 0:01:15.4]} 28. Qxc1 {[%clk
0:00:50.9]} 28... Qg4+ {[%clk 0:01:14]} 29. Kh1 {[%clk 0:00:41.3]} 29... Nxf2+
{[%clk 0:00:47.4]} 30. Rxf2 {[%clk 0:00:40.4]} 30... Qxd4 {[%clk 0:00:46.8]} 31.
Bb7 {[%clk 0:00:29.1]} 31... Qxf2 {[%clk 0:00:44.6]} 0-1

[Event "*** Titled Tuesday Blitz"]
[Site "Chess.com"]
[Date "2020.04.28"]
[Round "7"]
[White "IMTominho"]
[Black "MaximDlugy"]
[Result "0-1"]
[WhiteElo "2817"]
[BlackElo "2922"]
[TimeControl "180+1"]
[EndTime "11:17:29 PDT"]
[Termination "MaximDlugy won by resignation"]

1. d4 {[%clk 0:03:00.9]} 1... d5 {[%clk 0:02:59.9]} 2. c4 {[%clk 0:03:00.3]}
2... dxc4 {[%clk 0:03:00.8]} 3. e4 {[%clk 0:02:58.7]} 3... e5 {[%clk 0:03:00.9]}
4. Nf3 {[%clk 0:02:55.7]} 4... Bb4+ {[%clk 0:03:01.3]} 5. Nbd2 {[%clk
0:02:40.2]} 5... c3 {[%clk 0:02:40.3]} 6. bxc3 {[%clk 0:02:27]} 6... Bxc3 {[%clk
0:02:39]} 7. Rb1 {[%clk 0:02:25.1]} 7... exd4 {[%clk 0:02:22.4]} 8. Bc4 {[%clk
0:02:26]} 8... Nc6 {[%clk 0:02:17.2]} 9. O-O {[%clk 0:02:23.6]} 9... Nh6 {[%clk
0:02:09.3]} 10. Ba3 {[%clk 0:02:19.4]} 10... a5 {[%clk 0:02:08.7]} 11. Bb5
{[%clk 0:02:13.5]} 11... Bd7 {[%clk 0:02:04.2]} 12. Nb3 {[%clk 0:02:06.5]} 12...
Nb4 {[%clk 0:02:04.1]} 13. Nbxd4 {[%clk 0:01:57.8]} 13... O-O {[%clk 0:02:02.6]}
14. Bxd7 {[%clk 0:01:36.2]} 14... Qxd7 {[%clk 0:02:02.8]} 15. Ne2 {[%clk
0:01:36.7]} 15... Qxd1 {[%clk 0:02:02.7]} 16. Rfxd1 {[%clk 0:01:37.6]} 16... Bf6
{[%clk 0:02:03.3]} 17. e5 {[%clk 0:01:23.3]} 17... Rfe8 {[%clk 0:01:54.5]} 18.
exf6 {[%clk 0:01:23.1]} 18... Rxe2 {[%clk 0:01:54.3]} 19. fxg7 {[%clk
0:01:15.6]} 19... Rxa2 {[%clk 0:01:52.9]} 20. Bxb4 {[%clk 0:01:14]} 20... axb4
{[%clk 0:01:52.6]} 21. Rxb4 {[%clk 0:01:14.8]} 21... Ra1 {[%clk 0:01:49.1]} 22.
Rbb1 {[%clk 0:01:02.9]} 22... Rxb1 {[%clk 0:01:49.3]} 23. Rxb1 {[%clk
0:01:03.8]} 23... b6 {[%clk 0:01:50.2]} 24. Nd4 {[%clk 0:00:47.7]} 24... Kxg7
{[%clk 0:01:46.6]} 25. f3 {[%clk 0:00:46.6]} 25... Rd8 {[%clk 0:01:41.4]} 26.
Nb5 {[%clk 0:00:42.3]} 26... Rd7 {[%clk 0:01:37.9]} 27. Rc1 {[%clk 0:00:39.3]}
27... c5 {[%clk 0:01:37.8]} 28. Rb1 {[%clk 0:00:37.5]} 28... Nf5 {[%clk
0:01:33.6]} 29. Nc3 {[%clk 0:00:36.4]} 29... Rd6 {[%clk 0:01:23.9]} 30. Na4
{[%clk 0:00:35.4]} 30... Rd4 {[%clk 0:01:24.5]} 31. Nxb6 {[%clk 0:00:34.5]}
31... Rb4 {[%clk 0:01:25.1]} 32. Rxb4 {[%clk 0:00:32.8]} 32... cxb4 {[%clk
0:01:25.7]} 33. Kf2 {[%clk 0:00:30.8]} 33... b3 {[%clk 0:01:25.3]} 34. Na4
{[%clk 0:00:24.2]} 34... Kf6 {[%clk 0:01:25.5]} 35. Ke2 {[%clk 0:00:22.3]} 35...
Ke5 {[%clk 0:01:23.7]} 36. g3 {[%clk 0:00:22.4]} 36... Kd4 {[%clk 0:01:23]} 37.
Kd2 {[%clk 0:00:22.4]} 37... Nd6 {[%clk 0:01:22]} 38. h4 {[%clk 0:00:15.6]}
38... Nf5 {[%clk 0:01:16.6]} 0-1

[Event "*** Titled Tuesday Blitz"]
[Site "Chess.com"]
[Date "2020.04.28"]
[Round "7"]
[White "MaxLeto"]
[Black "tomozupan"]
[Result "1/2-1/2"]
[WhiteElo "2360"]
[BlackElo "2220"]
[TimeControl "180+1"]
[EndTime "11:17:30 PDT"]
[Termination "Game drawn by repetition"]

1. g4 {[%clk 0:02:49.8]} 1... d5 {[%clk 0:02:59.1]} 2. Bg2 {[%clk 0:02:49.5]}
2... Qd6 {[%clk 0:02:59]} 3. Nc3 {[%clk 0:02:39.2]} 3... c6 {[%clk 0:02:58.9]}
4. h3 {[%clk 0:02:33.6]} 4... e5 {[%clk 0:02:58.3]} 5. e4 {[%clk 0:02:32.6]}
5... d4 {[%clk 0:02:57.9]} 6. Nce2 {[%clk 0:02:33.3]} 6... h5 {[%clk 0:02:54.6]}
7. Ng3 {[%clk 0:02:30.2]} 7... hxg4 {[%clk 0:02:52.1]} 8. hxg4 {[%clk
0:02:31.1]} 8... Rxh1 {[%clk 0:02:51.3]} 9. Bxh1 {[%clk 0:02:32]} 9... Nh6
{[%clk 0:02:48.4]} 10. Nf5 {[%clk 0:02:27.4]} 10... Bxf5 {[%clk 0:02:48]} 11.
exf5 {[%clk 0:02:28.3]} 11... Nd7 {[%clk 0:02:42.1]} 12. d3 {[%clk 0:02:25.8]}
12... O-O-O {[%clk 0:02:40.9]} 13. Qe2 {[%clk 0:02:20.1]} 13... Qb4+ {[%clk
0:02:32.6]} 14. Qd2 {[%clk 0:02:14.9]} 14... Qb6 {[%clk 0:02:22.6]} 15. Qe2
{[%clk 0:02:03.2]} 15... Bb4+ {[%clk 0:02:19.7]} 16. Kd1 {[%clk 0:01:26.9]}
16... f6 {[%clk 0:02:18.1]} 17. Be4 {[%clk 0:00:49.4]} 17... Nf7 {[%clk
0:02:16.9]} 18. Nf3 {[%clk 0:00:45.1]} 18... Nc5 {[%clk 0:02:16.2]} 19. a3
{[%clk 0:00:40.8]} 19... Nxe4 {[%clk 0:02:02.2]} 20. axb4 {[%clk 0:00:39.7]}
20... Ned6 {[%clk 0:01:58.4]} 21. c3 {[%clk 0:00:27.5]} 21... dxc3 {[%clk
0:01:57.5]} 22. bxc3 {[%clk 0:00:28.4]} 22... Nb5 {[%clk 0:01:56.8]} 23. Kc2
{[%clk 0:00:25.6]} 23... Nfd6 {[%clk 0:01:51.2]} 24. Be3 {[%clk 0:00:25.4]}
24... Qc7 {[%clk 0:01:46]} 25. c4 {[%clk 0:00:22.5]} 25... Nd4+ {[%clk
0:01:34.4]} 26. Bxd4 {[%clk 0:00:20.1]} 26... exd4 {[%clk 0:01:34.6]} 27. Rxa7
{[%clk 0:00:20.5]} 27... Qb6 {[%clk 0:01:07.2]} 28. Ra8+ {[%clk 0:00:20.6]}
28... Kc7 {[%clk 0:01:07.5]} 29. Rxd8 {[%clk 0:00:21.1]} 29... Kxd8 {[%clk
0:01:07.8]} 30. c5 {[%clk 0:00:21.7]} 30... Qxb4 {[%clk 0:01:06.8]} 31. cxd6
{[%clk 0:00:22.4]} 31... Qc3+ {[%clk 0:01:02.7]} 32. Kd1 {[%clk 0:00:22.3]}
32... Qa1+ {[%clk 0:01:01.6]} 33. Kc2 {[%clk 0:00:21.9]} 33... Qa2+ {[%clk
0:01:00.8]} 34. Kd1 {[%clk 0:00:20.9]} 34... Qa1+ {[%clk 0:00:49.9]} 35. Kd2
{[%clk 0:00:20.6]} 35... Qc3+ {[%clk 0:00:49.6]} 36. Kd1 {[%clk 0:00:18.8]}
36... Qa1+ {[%clk 0:00:49.7]} 1/2-1/2

[Event "*** Titled Tuesday Blitz"]
[Site "Chess.com"]
[Date "2020.04.28"]
[Round "7"]
[White "aquaticpineapples"]
[Black "ZCorrales"]
[Result "1-0"]
[WhiteElo "2227"]
[BlackElo "2058"]
[TimeControl "180+1"]
[EndTime "11:17:30 PDT"]
[Termination "aquaticpineapples won on time"]

1. d4 {[%clk 0:03:00.9]} 1... Nf6 {[%clk 0:02:58.2]} 2. Nf3 {[%clk 0:03:00.7]}
2... e6 {[%clk 0:02:56.4]} 3. Nbd2 {[%clk 0:03:00.6]} 3... d5 {[%clk 0:02:55.7]}
4. e3 {[%clk 0:03:00.9]} 4... Be7 {[%clk 0:02:55]} 5. Bd3 {[%clk 0:03:00.9]}
5... c5 {[%clk 0:02:54.8]} 6. b3 {[%clk 0:03:01.2]} 6... Nc6 {[%clk 0:02:54.5]}
7. a3 {[%clk 0:03:01.1]} 7... O-O {[%clk 0:02:54.7]} 8. Bb2 {[%clk 0:03:01.4]}
8... Qb6 {[%clk 0:02:47.1]} 9. O-O {[%clk 0:03:00.7]} 9... c4 {[%clk 0:02:46.2]}
10. Be2 {[%clk 0:02:50.4]} 10... cxb3 {[%clk 0:02:43.5]} 11. cxb3 {[%clk
0:02:48.2]} 11... Bd7 {[%clk 0:02:40.2]} 12. Ne5 {[%clk 0:02:42.4]} 12... Rac8
{[%clk 0:02:38.6]} 13. f4 {[%clk 0:02:41.1]} 13... Ne4 {[%clk 0:02:31.7]} 14.
Nxe4 {[%clk 0:02:34.6]} 14... Nxe5 {[%clk 0:02:29.4]} 15. dxe5 {[%clk
0:02:09.2]} 15... dxe4 {[%clk 0:02:06.2]} 16. Qxd7 {[%clk 0:01:41.8]} 16...
Qxe3+ {[%clk 0:02:03.2]} 17. Rf2 {[%clk 0:01:41.9]} 17... Bc5 {[%clk 0:02:01.9]}
18. Rf1 {[%clk 0:00:52.5]} 18... Qxe2 {[%clk 0:01:58.8]} 19. Bd4 {[%clk
0:00:52.2]} 19... Qd3 {[%clk 0:01:48.5]} 20. f5 {[%clk 0:00:25.5]} 1-0

[Event "*** Titled Tuesday Blitz"]
[Site "Chess.com"]
[Date "2020.04.28"]
[Round "7"]
[White "Noam_Vitenberg"]
[Black "Aygehovit1992"]
[Result "0-1"]
[WhiteElo "2501"]
[BlackElo "2674"]
[TimeControl "180+1"]
[EndTime "11:17:32 PDT"]
[Termination "Aygehovit1992 won by checkmate"]

1. d4 {[%clk 0:03:00.9]} 1... d6 {[%clk 0:02:57]} 2. e4 {[%clk 0:02:53.5]} 2...
Nf6 {[%clk 0:02:57.1]} 3. Nc3 {[%clk 0:02:50.7]} 3... g6 {[%clk 0:02:57.5]} 4.
Be3 {[%clk 0:02:46.1]} 4... c6 {[%clk 0:02:56.8]} 5. Qd2 {[%clk 0:02:40]} 5...
b5 {[%clk 0:02:56.8]} 6. f3 {[%clk 0:02:38.8]} 6... Nbd7 {[%clk 0:02:54.2]} 7.
Bd3 {[%clk 0:02:35.9]} 7... Nb6 {[%clk 0:02:52.2]} 8. Nge2 {[%clk 0:02:31.2]}
8... Bg7 {[%clk 0:02:51.6]} 9. Bh6 {[%clk 0:02:28.9]} 9... O-O {[%clk
0:02:50.1]} 10. h4 {[%clk 0:02:26.4]} 10... b4 {[%clk 0:02:50.2]} 11. Nd1 {[%clk
0:02:23.6]} 11... c5 {[%clk 0:02:50.7]} 12. Bxg7 {[%clk 0:02:18.9]} 12... Kxg7
{[%clk 0:02:50]} 13. e5 {[%clk 0:02:08.6]} 13... Nh5 {[%clk 0:02:09.6]} 14. g4
{[%clk 0:02:02.5]} 14... c4 {[%clk 0:02:08.2]} 15. Be4 {[%clk 0:01:53.2]} 15...
d5 {[%clk 0:02:07.2]} 16. gxh5 {[%clk 0:01:53.1]} 16... dxe4 {[%clk 0:02:06.4]}
17. fxe4 {[%clk 0:01:54]} 17... Bg4 {[%clk 0:02:03.4]} 18. hxg6 {[%clk
0:01:51.9]} 18... fxg6 {[%clk 0:02:01.8]} 19. Ne3 {[%clk 0:01:50.1]} 19... Bf3
{[%clk 0:01:56.6]} 20. Rh3 {[%clk 0:01:38.2]} 20... Bxe4 {[%clk 0:01:56.5]} 21.
Ng4 {[%clk 0:01:37.8]} 21... Qd7 {[%clk 0:01:45.5]} 22. Qg5 {[%clk 0:01:22.2]}
22... Bf3 {[%clk 0:01:19.2]} 23. Rg3 {[%clk 0:00:55.6]} 23... Bxe2 {[%clk
0:01:12.7]} 24. Kxe2 {[%clk 0:00:56.5]} 24... Qxd4 {[%clk 0:01:10.7]} 25. h5
{[%clk 0:00:47.8]} 25... Nd5 {[%clk 0:00:57.8]} 26. Rd1 {[%clk 0:00:27]} 26...
Nf4+ {[%clk 0:00:53.1]} 27. Ke1 {[%clk 0:00:26.7]} 27... Qe4+ {[%clk 0:00:52.3]}
28. Kd2 {[%clk 0:00:21]} 28... Rad8+ {[%clk 0:00:50.8]} 29. Rd3 {[%clk
0:00:16.2]} 29... cxd3 {[%clk 0:00:50]} 30. Qxe7+ {[%clk 0:00:15.5]} 30... Kh8
{[%clk 0:00:50]} 31. c3 {[%clk 0:00:12.9]} 31... Qe2+ {[%clk 0:00:49]} 32. Kc1
{[%clk 0:00:12.7]} 32... Qc2# {[%clk 0:00:49.9]} 0-1

[Event "*** Titled Tuesday Blitz"]
[Site "Chess.com"]
[Date "2020.04.28"]
[Round "7"]
[White "Ranindu2003"]
[Black "NZT72"]
[Result "1-0"]
[WhiteElo "2536"]
[BlackElo "2398"]
[TimeControl "180+1"]
[EndTime "11:17:33 PDT"]
[Termination "Ranindu2003 won by resignation"]

1. e4 {[%clk 0:03:00.9]} 1... e5 {[%clk 0:02:58.9]} 2. Nf3 {[%clk 0:03:00.9]}
2... Nc6 {[%clk 0:02:59.1]} 3. Bb5 {[%clk 0:03:01.4]} 3... Nf6 {[%clk
0:02:58.9]} 4. O-O {[%clk 0:03:00]} 4... Nxe4 {[%clk 0:02:58.8]} 5. d4 {[%clk
0:03:00.5]} 5... Nd6 {[%clk 0:02:58.7]} 6. dxe5 {[%clk 0:03:00.8]} 6... Nxb5
{[%clk 0:02:58.1]} 7. a4 {[%clk 0:03:01]} 7... Nbd4 {[%clk 0:02:58.2]} 8. Nxd4
{[%clk 0:03:00.4]} 8... Nxd4 {[%clk 0:02:58.4]} 9. Qxd4 {[%clk 0:03:01.3]} 9...
d5 {[%clk 0:02:58.7]} 10. a5 {[%clk 0:02:59.8]} 10... Be7 {[%clk 0:02:51.2]} 11.
Nc3 {[%clk 0:02:57.5]} 11... c6 {[%clk 0:02:50.8]} 12. Be3 {[%clk 0:02:51.6]}
12... O-O {[%clk 0:02:48.4]} 13. Qd3 {[%clk 0:02:45.3]} 13... g6 {[%clk
0:02:35]} 14. Ne2 {[%clk 0:02:40.9]} 14... Bf5 {[%clk 0:02:18.2]} 15. Qd2 {[%clk
0:02:32.9]} 15... c5 {[%clk 0:02:14.1]} 16. Ng3 {[%clk 0:02:29.6]} 16... Be6
{[%clk 0:02:12.3]} 17. c3 {[%clk 0:02:23.7]} 17... h5 {[%clk 0:01:51.3]} 18. Bh6
{[%clk 0:01:49.3]} 18... Re8 {[%clk 0:01:49.9]} 19. f4 {[%clk 0:01:38.7]} 19...
h4 {[%clk 0:01:49.3]} 20. f5 {[%clk 0:01:29.8]} 20... hxg3 {[%clk 0:01:47.6]}
21. fxe6 {[%clk 0:01:28.5]} 21... fxe6 {[%clk 0:01:23.7]} 22. Qf4 {[%clk
0:01:26.8]} 22... Kh7 {[%clk 0:01:15.9]} 23. hxg3 {[%clk 0:01:00.8]} 23... Qd7
{[%clk 0:00:26.6]} 24. g4 {[%clk 0:00:47.4]} 24... c4 {[%clk 0:00:16.2]} 25. Qh2
{[%clk 0:00:43.4]} 25... Bc5+ {[%clk 0:00:14.9]} 26. Be3+ {[%clk 0:00:41.9]}
26... Kg8 {[%clk 0:00:14.5]} 27. Bxc5 {[%clk 0:00:42]} 1-0

[Event "*** Titled Tuesday Blitz"]
[Site "Chess.com"]
[Date "2020.04.28"]
[Round "7"]
[White "Phenix2k"]
[Black "Warerman"]
[Result "0-1"]
[WhiteElo "2281"]
[BlackElo "2453"]
[TimeControl "180+1"]
[EndTime "11:17:33 PDT"]
[Termination "Warerman won by resignation"]

1. d4 {[%clk 0:03:00.9]} 1... Nf6 {[%clk 0:02:59]} 2. c4 {[%clk 0:03:01]} 2...
e6 {[%clk 0:02:58.7]} 3. Nc3 {[%clk 0:03:01]} 3... d5 {[%clk 0:02:59.6]} 4. cxd5
{[%clk 0:02:59.5]} 4... exd5 {[%clk 0:02:59.3]} 5. Bg5 {[%clk 0:02:59.6]} 5...
Be7 {[%clk 0:02:59.3]} 6. e3 {[%clk 0:02:59.8]} 6... c6 {[%clk 0:02:57.9]} 7.
Bd3 {[%clk 0:02:59.7]} 7... Nbd7 {[%clk 0:02:58]} 8. Qc2 {[%clk 0:02:56.1]} 8...
O-O {[%clk 0:02:57.8]} 9. Nge2 {[%clk 0:02:55.8]} 9... Re8 {[%clk 0:02:57]} 10.
O-O-O {[%clk 0:02:55.5]} 10... Nf8 {[%clk 0:02:55.5]} 11. Kb1 {[%clk 0:02:54.7]}
11... Be6 {[%clk 0:02:55.4]} 12. f3 {[%clk 0:02:53]} 12... c5 {[%clk 0:02:52]}
13. g4 {[%clk 0:02:50.9]} 13... c4 {[%clk 0:02:44.3]} 14. Bf5 {[%clk 0:02:49.6]}
14... g6 {[%clk 0:02:44.3]} 15. Bxe6 {[%clk 0:02:45.4]} 15... Nxe6 {[%clk
0:02:45.2]} 16. Bxf6 {[%clk 0:02:41.8]} 16... Bxf6 {[%clk 0:02:46.1]} 17. h4
{[%clk 0:02:38.9]} 17... b5 {[%clk 0:02:43.9]} 18. h5 {[%clk 0:02:24.6]} 18...
b4 {[%clk 0:02:41.2]} 19. Na4 {[%clk 0:02:14]} 19... Rb8 {[%clk 0:02:18.8]} 20.
Ng3 {[%clk 0:02:03.5]} 20... b3 {[%clk 0:02:14.8]} 21. axb3 {[%clk 0:02:02.8]}
21... Rxb3 {[%clk 0:02:10.8]} 22. hxg6 {[%clk 0:01:55.3]} 22... hxg6 {[%clk
0:02:08.3]} 23. Rh6 {[%clk 0:01:51.9]} 23... Bg7 {[%clk 0:02:02.6]} 24. Rdh1
{[%clk 0:01:48.9]} 24... Qg5 {[%clk 0:01:40.9]} 25. Rh7 {[%clk 0:01:21.9]} 25...
Qxe3 {[%clk 0:01:31.9]} 26. Qh2 {[%clk 0:01:12.2]} 26... Qxd4 {[%clk 0:01:18.9]}
27. Rxg7+ {[%clk 0:01:00.8]} 27... Qxg7 {[%clk 0:01:15.5]} 28. Nf5 {[%clk
0:00:56.9]} 28... gxf5 {[%clk 0:01:13.7]} 29. gxf5 {[%clk 0:00:56.1]} 29... Ng5
{[%clk 0:01:06.6]} 30. f4 {[%clk 0:00:55.4]} 30... Nf3 {[%clk 0:01:02.4]} 31.
Qc2 {[%clk 0:00:33.5]} 31... Re1+ {[%clk 0:00:56.8]} 32. Rxe1 {[%clk 0:00:31.8]}
32... Nxe1 {[%clk 0:00:57.7]} 33. Qe2 {[%clk 0:00:31.6]} 33... Nd3 {[%clk
0:00:49.1]} 34. f6 {[%clk 0:00:25.5]} 34... Qg1+ {[%clk 0:00:42.4]} 0-1